fUST/lending_fUST_20260623
["ID","MTS","AMOUNT","RATE_DAILY","PERIOD"]
[426137709,1782162638000,-500.0,0.00016438,2]
[426137700,1782162638000,-500.0,0.00016438,2]
[426137707,1782162638000,-500.0,0.00016438,2]
[426137713,1782162638000,-511.42789317,0.00016438,2]
[426137715,1782162638000,-500.0,0.00016438,2]
[426137717,1782162638000,-503.86564712,0.00016438,2]
[426137719,1782162638000,-523.66,0.00016438,2]
[426137721,1782162638000,-500.0,0.00016438,2]
[426137723,1782162638000,-151.0,0.00016438,2]
[426137616,1782162638000,-500.0,0.00012821,2]
[426137725,1782162638000,-151.0,0.00016438,2]
[426137670,1782162638000,-506.63382901,0.00016438,2]
[426137672,1782162638000,-522.54376773,0.00016438,2]
[426137695,1782162638000,-500.0,0.00016438,2]
[426137666,1782162638000,-508.91242315,0.00016438,2]
[426137614,1782162638000,-864.0,0.00012586,2]
[426137668,1782162638000,-1262.52,0.00016438,2]
[426137634,1782162638000,-500.0,0.00013698,2]
[426137636,1782162638000,-300.0,0.00013699,2]
[426137624,1782162638000,-684.866283,0.00013354,2]
[426137622,1782162638000,-500.0,0.00013095,2]
[426137632,1782162638000,-500.0,0.00013698,2]
[426137630,1782162638000,-500.0,0.00013698,2]
[426137628,1782162638000,-267.7103083,0.00013638,2]
[426137626,1782162638000,-500.0,0.00013369,2]
[426137637,1782162638000,-231.322208,0.00013699,2]
[426137639,1782162638000,-684.866283,0.00013835,2]
[426137646,1782162638000,-244.0,0.0001523,2]
[426137620,1782162638000,-433.45811007,0.00013,2]
[426137652,1782162638000,-500.0,0.00016438,2]
[426137645,1782162638000,-1000.0,0.0001523,2]
[426137664,1782162638000,-500.0,0.00016438,2]
[426137654,1782162638000,-533.65903067,0.00016438,2]
[426137656,1782162638000,-528.07638226,0.00016438,2]
[426137650,1782162638000,-3594.64267001,0.00016338,2]
[426137658,1782162638000,-500.96462695,0.00016438,2]
[426137663,1782162638000,-500.0,0.00016438,2]
[426137660,1782162638000,-500.0,0.00016438,2]
[426137641,1782162638000,-1000.0,0.00013845,2]
[426137643,1782162638000,-500.0,0.00015002,2]
[426137648,1782162638000,-8653.05986937,0.00015963,2]
[426137799,1782162639000,-509.64446993,0.00016614,2]
[426137801,1782162639000,-500.0,0.00016614,2]
[426137811,1782162639000,-589.12659914,0.00016614,2]
[426137809,1782162639000,-500.0,0.00016614,2]
[426137797,1782162639000,-500.0,0.00016614,2]
[426137841,1782162639000,-532.65776858,0.00016614,2]
[426137793,1782162639000,-521.27913921,0.00016614,2]
[426137791,1782162639000,-294.3993322,0.00016614,2]
[426137805,1782162639000,-508.81644082,0.00016614,2]
[426137789,1782162639000,-500.0,0.00016614,2]
[426137787,1782162639000,-500.0,0.00016614,2]
[426137795,1782162639000,-500.0,0.00016614,2]
[426137807,1782162639000,-526.66176417,0.00016614,2]
[426137818,1782162639000,-500.0,0.00016614,2]
[426137812,1782162639000,-1000.0,0.00016614,2]
[426137814,1782162639000,-500.0,0.00016614,2]
[426137816,1782162639000,-500.0,0.00016614,2]
[426137820,1782162639000,-511.79981695,0.00016614,2]
[426137822,1782162639000,-535.74918561,0.00016614,2]
[426137824,1782162639000,-500.0,0.00016614,2]
[426137826,1782162639000,-500.0,0.00016614,2]
[426137828,1782162639000,-106.8050558,0.00016614,2]
[426137834,1782162639000,-411.38817163,0.00016614,2]
[426137839,1782162639000,-243.22928619,0.00016614,2]
[426137836,1782162639000,-500.0,0.00016614,2]
[426137785,1782162639000,-500.0,0.00016614,2]
[426137803,1782162639000,-560.85454787,0.00016614,2]
[426137779,1782162639000,-501.77523733,0.00016614,2]
[426137729,1782162639000,-500.0,0.00016438,2]
[426137781,1782162639000,-500.0,0.00016614,2]
[426137846,1782162639000,-501.27153531,0.00016614,2]
[426137733,1782162639000,-500.0,0.00016438,2]
[426137732,1782162639000,-475.726837,0.00016438,2]
[426137727,1782162639000,-151.0,0.00016438,2]
[426137737,1782162639000,-500.0,0.00016438,2]
[426137736,1782162639000,-511.01786067,0.00016438,2]
[426137745,1782162639000,-151.0,0.00016438,2]
[426137744,1782162639000,-157.914151,0.00016438,2]
[426137741,1782162639000,-510.80673236,0.00016438,2]
[426137740,1782162639000,-518.27354259,0.00016438,2]
[426137747,1782162639000,-500.0,0.00016613,2]
[426137757,1782162639000,-502.884896,0.00016614,2]
[426137783,1782162639000,-507.3124558,0.00016614,2]
[426137759,1782162639000,-502.68174304,0.00016614,2]
[426137751,1782162639000,-151.0,0.00016614,2]
[426137753,1782162639000,-298.94,0.00016614,2]
[426137755,1782162639000,-500.0,0.00016614,2]
[426137761,1782162639000,-500.0,0.00016614,2]
[426137765,1782162639000,-500.0,0.00016614,2]
[426137763,1782162639000,-506.66106882,0.00016614,2]
[426137769,1782162639000,-512.33939762,0.00016614,2]
[426137767,1782162639000,-500.0,0.00016614,2]
[426137771,1782162639000,-503.50262055,0.00016614,2]
[426137775,1782162639000,-500.0,0.00016614,2]
[426137773,1782162639000,-502.53974438,0.00016614,2]
[426137777,1782162639000,-510.39427966,0.00016614,2]
[426137749,1782162639000,-500.0,0.00016614,2]
[426137850,1782162639000,-526.62072261,0.00016614,2]
[426137918,1782162639000,-500.0,0.00016614,2]
[426137852,1782162639000,-502.60541384,0.00016614,2]
[426137916,1782162639000,-500.0,0.00016614,2]
[426137914,1782162639000,-500.0,0.00016614,2]
[426137920,1782162639000,-500.0,0.00016614,2]
[426137930,1782162639000,-510.13579059,0.00016614,2]
[426137932,1782162639000,-500.0,0.00016614,2]
[426137922,1782162639000,-549.92,0.00016614,2]
[426137924,1782162639000,-500.0,0.00016614,2]
[426137928,1782162639000,-520.35245634,0.00016614,2]
[426137926,1782162639000,-507.4046857,0.00016614,2]
[426137934,1782162639000,-524.88488864,0.00016614,2]
[426137938,1782162639000,-500.0,0.00016614,2]
[426137936,1782162639000,-514.76051848,0.00016614,2]
[426137912,1782162639000,-523.46813501,0.00016614,2]
[426137942,1782162639000,-508.1343611,0.00016614,2]
[426137946,1782162639000,-500.0,0.00016614,2]
[426137948,1782162639000,-151.0,0.00016614,2]
[426137950,1782162639000,-487.79660408,0.00016614,2]
[426137951,1782162639000,-500.0,0.00016614,2]
[426137955,1782162639000,-1000.0,0.00016614,2]
[426137953,1782162639000,-500.0,0.00016614,2]
[426137957,1782162639000,-507.42489168,0.00016614,2]
[426137961,1782162639000,-500.0,0.00016614,2]
[426137963,1782162639000,-520.00301584,0.00016614,2]
[426137965,1782162639000,-566.26971733,0.00016614,2]
[426137967,1782162639000,-507.4880239,0.00016614,2]
[426137844,1782162639000,-500.0,0.00016614,2]
[426137944,1782162639000,-151.0,0.00016614,2]
[426137910,1782162639000,-151.988666,0.00016614,2]
[426137940,1782162639000,-337.47682752,0.00016614,2]
[426137898,1782162639000,-501.89563945,0.00016614,2]
[426137848,1782162639000,-500.0,0.00016614,2]
[426137908,1782162639000,-151.0,0.00016614,2]
[426137843,1782162639000,-525.47713549,0.00016614,2]
[426137854,1782162639000,-500.0,0.00016614,2]
[426137859,1782162639000,-501.91769071,0.00016614,2]
[426137866,1782162639000,-500.0,0.00016614,2]
[426137862,1782162639000,-506.29860738,0.00016614,2]
[426137857,1782162639000,-505.65762936,0.00016614,2]
[426137876,1782162639000,-500.0,0.00016614,2]
[426137868,1782162639000,-502.79527103,0.00016614,2]
[426137880,1782162639000,-508.82323788,0.00016614,2]
[426137872,1782162639000,-191.66463982,0.00016614,2]
[426137874,1782162639000,-500.0,0.00016614,2]
[426137870,1782162639000,-528.38,0.00016614,2]
[426137864,1782162639000,-508.61869624,0.00016614,2]
[426137878,1782162639000,-500.56097377,0.00016614,2]
[426137906,1782162639000,-500.0,0.00016614,2]
[426137900,1782162639000,-534.89085375,0.00016614,2]
[426137902,1782162639000,-515.35791886,0.00016614,2]
[426137896,1782162639000,-500.0,0.00016614,2]
[426137894,1782162639000,-500.0,0.00016614,2]
[426137890,1782162639000,-507.85316542,0.00016614,2]
[426137904,1782162639000,-501.44208517,0.00016614,2]
[426137892,1782162639000,-500.0,0.00016614,2]
[426137887,1782162639000,-513.21831837,0.00016614,2]
[426137884,1782162639000,-542.70191834,0.00016614,2]
[426137882,1782162639000,-509.81646756,0.00016614,2]
[426137888,1782162639000,-503.8964734,0.00016614,2]
[426138048,1782162640000,-506.36288801,0.00016614,2]
[426138044,1782162640000,-501.03032096,0.00016614,2]
[426138057,1782162640000,-509.87812074,0.00016614,2]
[426138056,1782162640000,-506.33426194,0.00016614,2]
[426138049,1782162640000,-500.0,0.00016614,2]
[426138051,1782162640000,-526.70946686,0.00016614,2]
[426138040,1782162640000,-500.0,0.00016614,2]
[426138042,1782162640000,-532.16680184,0.00016614,2]
[426138038,1782162640000,-502.95697517,0.00016614,2]
[426138036,1782162640000,-503.38833424,0.00016614,2]
[426138026,1782162640000,-510.99207497,0.00016614,2]
[426138034,1782162640000,-507.08351713,0.00016614,2]
[426138046,1782162640000,-500.0,0.00016614,2]
[426138053,1782162640000,-467.13075525,0.00016614,2]
[426138084,1782162640000,-544.95407695,0.00016614,2]
[426138061,1782162640000,-503.44238565,0.00016614,2]
[426138063,1782162640000,-513.07306921,0.00016614,2]
[426138065,1782162640000,-500.0,0.00016614,2]
[426138067,1782162640000,-500.0,0.00016614,2]
[426138069,1782162640000,-500.0,0.00016614,2]
[426138071,1782162640000,-508.0161341,0.00016614,2]
[426138073,1782162640000,-537.59040397,0.00016614,2]
[426138075,1782162640000,-500.0,0.00016614,2]
[426138079,1782162640000,-500.0,0.00016614,2]
[426138082,1782162640000,-500.0,0.00016614,2]
[426138077,1782162640000,-500.0,0.00016614,2]
[426138086,1782162640000,-500.0,0.00016614,2]
[426138024,1782162640000,-508.01984083,0.00016614,2]
[426138059,1782162640000,-508.65609247,0.00016614,2]
[426138022,1782162640000,-501.22472386,0.00016614,2]
[426137980,1782162640000,-511.2620221,0.00016614,2]
[426138020,1782162640000,-523.93849044,0.00016614,2]
[426137978,1782162640000,-517.87399645,0.00016614,2]
[426137969,1782162640000,-510.1731411,0.00016614,2]
[426137976,1782162640000,-502.83675325,0.00016614,2]
[426137971,1782162640000,-511.49432951,0.00016614,2]
[426137972,1782162640000,-528.32599803,0.00016614,2]
[426137974,1782162640000,-469.31951132,0.00016614,2]
[426137982,1782162640000,-500.0,0.00016614,2]
[426137984,1782162640000,-503.85010821,0.00016614,2]
[426137990,1782162640000,-508.21262576,0.00016614,2]
[426137988,1782162640000,-506.11658596,0.00016614,2]
[426137986,1782162640000,-503.35524687,0.00016614,2]
[426137995,1782162640000,-507.7173346,0.00016614,2]
[426137993,1782162640000,-630.63434257,0.00016614,2]
[426138016,1782162640000,-252.81026873,0.00016614,2]
[426137999,1782162640000,-500.0,0.00016614,2]
[426138003,1782162640000,-500.0,0.00016614,2]
[426137991,1782162640000,-500.0,0.00016614,2]
[426137997,1782162640000,-441.66993005,0.00016614,2]
[426138001,1782162640000,-500.0,0.00016614,2]
[426138007,1782162640000,-516.35603772,0.00016614,2]
[426138009,1782162640000,-562.14900955,0.00016614,2]
[426138011,1782162640000,-501.94274662,0.00016614,2]
[426138014,1782162640000,-506.19020572,0.00016614,2]
[426138013,1782162640000,-506.52950296,0.00016614,2]
[426138030,1782162640000,-518.78,0.00016614,2]
[426138028,1782162640000,-437.23719826,0.00016614,2]
[426138032,1782162640000,-500.0,0.00016614,2]
[426138018,1782162640000,-514.73619332,0.00016614,2]
[426138005,1782162640000,-500.0,0.00016614,2]
[426138092,1782162640000,-500.0,0.00016614,2]
[426138088,1782162640000,-500.0,0.00016614,2]
[426138090,1782162640000,-500.0,0.00016614,2]
[426138161,1782162640000,-501.84000062,0.00016614,2]
[426138165,1782162640000,-449.0072179,0.00016614,2]
[426138169,1782162640000,-500.0,0.00016614,2]
[426138171,1782162640000,-500.0,0.00016614,2]
[426138181,1782162640000,-151.0,0.00016614,2]
[426138173,1782162640000,-602.08194991,0.00016614,2]
[426138183,1782162640000,-502.30344749,0.00016614,2]
[426138175,1782162640000,-413.66388426,0.00016614,2]
[426138177,1782162640000,-500.0,0.00016614,2]
[426138179,1782162640000,-151.0,0.00016614,2]
[426138185,1782162640000,-151.0,0.00016614,2]
[426138186,1782162640000,-151.0,0.00016614,2]
[426138191,1782162640000,-151.0,0.00016614,2]
[426138192,1782162640000,-503.07011726,0.00016614,2]
[426138189,1782162640000,-500.0,0.00016614,2]
[426138205,1782162640000,-500.0,0.00016614,2]
[426138207,1782162640000,-500.0,0.00016614,2]
[426138194,1782162640000,-151.0,0.00016614,2]
[426138209,1782162640000,-502.26275153,0.00016614,2]
[426138196,1782162640000,-501.50544102,0.00016614,2]
[426138198,1782162640000,-178.522627,0.00016614,2]
[426138203,1782162640000,-500.0,0.00016614,2]
[426138201,1782162640000,-501.49352412,0.00016614,2]
[426138211,1782162640000,-502.01767212,0.00016614,2]
[426138221,1782162640000,-500.0,0.00016614,2]
[426138215,1782162640000,-500.0,0.00016614,2]
[426138219,1782162640000,-500.0,0.00016614,2]
[426138213,1782162640000,-500.0,0.00016614,2]
[426138095,1782162640000,-504.02234427,0.00016614,2]
[426138167,1782162640000,-502.39393082,0.00016614,2]
[426138163,1782162640000,-500.0,0.00016614,2]
[426138217,1782162640000,-500.0,0.00016614,2]
[426138149,1782162640000,-503.67575133,0.00016614,2]
[426138159,1782162640000,-559.51,0.00016614,2]
[426138108,1782162640000,-500.0,0.00016614,2]
[426138102,1782162640000,-500.0,0.00016614,2]
[426138098,1782162640000,-500.0,0.00016614,2]
[426138100,1782162640000,-500.0,0.00016614,2]
[426138106,1782162640000,-500.0,0.00016614,2]
[426138104,1782162640000,-505.0693532,0.00016614,2]
[426138110,1782162640000,-504.95837758,0.00016614,2]
[426138115,1782162640000,-500.0,0.00016614,2]
[426138117,1782162640000,-500.0,0.00016614,2]
[426138129,1782162640000,-500.0,0.00016614,2]
[426138119,1782162640000,-500.0,0.00016614,2]
[426138125,1782162640000,-342.39545924,0.00016614,2]
[426138123,1782162640000,-500.0,0.00016614,2]
[426138097,1782162640000,-508.41,0.00016614,2]
[426138131,1782162640000,-501.73302891,0.00016614,2]
[426138153,1782162640000,-500.0,0.00016614,2]
[426138151,1782162640000,-500.0,0.00016614,2]
[426138147,1782162640000,-519.37742747,0.00016614,2]
[426138145,1782162640000,-500.0,0.00016614,2]
[426138121,1782162640000,-500.0,0.00016614,2]
[426138155,1782162640000,-500.0,0.00016614,2]
[426138143,1782162640000,-500.0,0.00016614,2]
[426138139,1782162640000,-500.0,0.00016614,2]
[426138141,1782162640000,-500.0,0.00016614,2]
[426138137,1782162640000,-509.21919218,0.00016614,2]
[426138135,1782162640000,-503.73646138,0.00016614,2]
[426138133,1782162640000,-500.0,0.00016614,2]
[426138127,1782162640000,-500.0,0.00016614,2]
[426138157,1782162640000,-500.0,0.00016614,2]
[426138313,1782162641000,-215.41,0.00016986,2]
[426138302,1782162641000,-500.0,0.00016986,2]
[426138304,1782162641000,-500.0,0.00016986,2]
[426138307,1782162641000,-500.0,0.00016986,2]
[426138300,1782162641000,-568.55,0.00016888,2]
[426138290,1782162641000,-151.0,0.00016888,2]
[426138298,1782162641000,-500.0,0.00016888,2]
[426138296,1782162641000,-500.0,0.00016888,2]
[426138292,1782162641000,-500.0,0.00016888,2]
[426138294,1782162641000,-151.0,0.00016888,2]
[426138336,1782162641000,-500.0,0.00016999,2]
[426138309,1782162641000,-271.21,0.00016986,2]
[426138311,1782162641000,-1262.52,0.00016986,2]
[426138324,1782162641000,-500.0,0.00016986,2]
[426138319,1782162641000,-500.0,0.00016986,2]
[426138317,1782162641000,-500.0,0.00016986,2]
[426138334,1782162641000,-500.0,0.00016999,2]
[426138332,1782162641000,-500.0,0.00016999,2]
[426138321,1782162641000,-500.0,0.00016986,2]
[426138326,1782162641000,-500.0,0.00016986,2]
[426138328,1782162641000,-500.0,0.00016986,2]
[426138330,1782162641000,-500.0,0.00016986,2]
[426138338,1782162641000,-500.0,0.00016999,2]
[426138342,1782162641000,-508.27996584,0.00016999,2]
[426138346,1782162641000,-500.0,0.00016999,2]
[426138340,1782162641000,-500.0,0.00016999,2]
[426138287,1782162641000,-299.79,0.00016888,2]
[426138315,1782162641000,-1250.17,0.00016986,2]
[426138281,1782162641000,-500.0,0.00016888,2]
[426138250,1782162641000,-486.34518872,0.00016712,2]
[426138279,1782162641000,-500.0,0.00016888,2]
[426138223,1782162641000,-500.0,0.00016712,2]
[426138234,1782162641000,-500.0,0.00016712,2]
[426138228,1782162641000,-500.0,0.00016712,2]
[426138225,1782162641000,-500.0,0.00016712,2]
[426138227,1782162641000,-500.0,0.00016712,2]
[426138230,1782162641000,-1262.52,0.00016712,2]
[426138232,1782162641000,-500.0,0.00016712,2]
[426138236,1782162641000,-1250.17,0.00016712,2]
[426138238,1782162641000,-500.0,0.00016712,2]
[426138244,1782162641000,-500.0,0.00016712,2]
[426138242,1782162641000,-308.02,0.00016712,2]
[426138240,1782162641000,-500.0,0.00016712,2]
[426138246,1782162641000,-500.0,0.00016712,2]
[426138277,1782162641000,-385.51,0.00016888,2]
[426138260,1782162641000,-492.0,0.00016752,2]
[426138252,1782162641000,-500.0,0.00016712,2]
[426138255,1782162641000,-500.0,0.00016712,2]
[426138258,1782162641000,-1000.0,0.00016752,2]
[426138266,1782162641000,-425.35,0.00016888,2]
[426138262,1782162641000,-158.87,0.00016888,2]
[426138264,1782162641000,-272.19,0.00016888,2]
[426138272,1782162641000,-500.0,0.00016888,2]
[426138268,1782162641000,-500.0,0.00016888,2]
[426138270,1782162641000,-500.0,0.00016888,2]
[426138285,1782162641000,-500.0,0.00016888,2]
[426138273,1782162641000,-170.09,0.00016888,2]
[426138283,1782162641000,-500.0,0.00016888,2]
[426138276,1782162641000,-500.0,0.00016888,2]
[426138248,1782162641000,-500.0,0.00016712,2]
[426138344,1782162641000,-500.0,0.00016999,2]
[426138399,1782162641000,-1250.17,0.0001726,2]
[426138360,1782162641000,-508.13706127,0.00016999,2]
[426138415,1782162641000,-1250.17,0.00017808,2]
[426138421,1782162641000,-1250.17,0.00018082,2]
[426138419,1782162641000,-1262.52,0.00018082,2]
[426138436,1782162641000,-3594.64266997,0.00018482,2]
[426138438,1782162641000,-434.64314,0.00018532,2]
[426138428,1782162641000,-500.0,0.00018387,2]
[426138426,1782162641000,-1250.17,0.00018356,2]
[426138432,1782162641000,-791.0,0.00018428,2]
[426138430,1782162641000,-1000.0,0.00018428,2]
[426138434,1782162641000,-156.6715181,0.00018438,2]
[426138440,1782162641000,-375.752294,0.00018535,2]
[426138450,1782162641000,-173.294,0.0001888,2]
[426138442,1782162641000,-205.73387825,0.00018617,2]
[426138423,1782162641000,-1262.52,0.00018356,2]
[426138444,1782162641000,-1262.52,0.0001863,2]
[426138448,1782162641000,-370.59915191,0.00018807,2]
[426138452,1782162641000,-1262.52,0.00018904,2]
[426138462,1782162641000,-215.147634,0.00019012,2]
[426138464,1782162641000,-270.295268,0.00019012,2]
[426138458,1782162641000,-593.11905434,0.00019,2]
[426138456,1782162641000,-423.11834601,0.0001892,2]
[426138460,1782162641000,-160.0,0.00019012,2]
[426138454,1782162641000,-1250.17,0.00018904,2]
[426138468,1782162641000,-367.565086,0.00019012,2]
[426138466,1782162641000,-160.0,0.00019012,2]
[426138469,1782162641000,-575.130173,0.00019012,2]
[426138471,1782162641000,-160.0,0.00019012,2]
[426138348,1782162641000,-500.0,0.00016999,2]
[426138446,1782162641000,-1250.17,0.0001863,2]
[426138417,1782162641000,-201.3483308,0.00018,2]
[426138403,1782162641000,-1262.52,0.00017534,2]
[426138409,1782162641000,-2174.2253777,0.000176,2]
[426138352,1782162641000,-500.0,0.00016999,2]
[426138350,1782162641000,-500.0,0.00016999,2]
[426138356,1782162641000,-500.0,0.00016999,2]
[426138354,1782162641000,-500.0,0.00016999,2]
[426138362,1782162641000,-103485.00708434,0.00017,2]
[426138364,1782162641000,-151.0,0.00017,2]
[426138372,1782162641000,-1510.58634961,0.00017147,2]
[426138366,1782162641000,-3594.64266997,0.00017053,2]
[426138370,1782162641000,-850.55537703,0.00017147,2]
[426138368,1782162641000,-211.10655488,0.00017105,2]
[426138386,1782162641000,-500.0,0.00017162,2]
[426138376,1782162641000,-500.0,0.00017162,2]
[426138378,1782162641000,-500.0,0.00017162,2]
[426138358,1782162641000,-500.0,0.00016999,2]
[426138384,1782162641000,-215.42,0.00017162,2]
[426138405,1782162641000,-1250.17,0.00017534,2]
[426138407,1782162641000,-472.53076502,0.00017575,2]
[426138413,1782162641000,-1262.52,0.00017808,2]
[426138382,1782162641000,-201.09,0.00017162,2]
[426138411,1782162641000,-3594.64266997,0.00017767,2]
[426138395,1782162641000,-500.0,0.00017162,2]
[426138401,1782162641000,-500.0,0.00017436,2]
[426138391,1782162641000,-500.0,0.00017162,2]
[426138389,1782162641000,-169.86,0.00017162,2]
[426138393,1782162641000,-500.0,0.00017162,2]
[426138388,1782162641000,-500.0,0.00017162,2]
[426138380,1782162641000,-457.97,0.00017162,2]
[426138397,1782162641000,-1262.52,0.0001726,2]
[426138564,1782162642000,-501.7050315,0.00019495,2]
[426138556,1782162642000,-536.51666801,0.00019495,2]
[426138552,1782162642000,-208.313334,0.00019453,2]
[426138554,1782162642000,-173.857256,0.00019459,2]
[426138550,1782162642000,-1250.17,0.00019452,2]
[426138538,1782162642000,-500.0,0.00019399,2]
[426138558,1782162642000,-500.0,0.00019495,2]
[426138560,1782162642000,-506.15757607,0.00019495,2]
[426138540,1782162642000,-1842.0,0.00019413,2]
[426138542,1782162642000,-445.0,0.00019413,2]
[426138562,1782162642000,-500.0,0.00019495,2]
[426138547,1782162642000,-1262.52,0.00019452,2]
[426138566,1782162642000,-500.0,0.00019495,2]
[426138578,1782162642000,-157.13420102,0.00019495,2]
[426138570,1782162642000,-500.0,0.00019495,2]
[426138572,1782162642000,-500.0,0.00019495,2]
[426138574,1782162642000,-502.72095923,0.00019495,2]
[426138585,1782162642000,-500.0,0.00019495,2]
[426138576,1782162642000,-200.0,0.00019495,2]
[426138583,1782162642000,-500.0,0.00019495,2]
[426138581,1782162642000,-500.0,0.00019495,2]
[426138587,1782162642000,-509.84510931,0.00019495,2]
[426138589,1782162642000,-506.26741096,0.00019495,2]
[426138591,1782162642000,-164.0,0.000195,7]
[426138593,1782162642000,-500.0,0.00019571,2]
[426138545,1782162642000,-186.0,0.00019413,2]
[426138568,1782162642000,-519.88027305,0.00019495,2]
[426138536,1782162642000,-500.0,0.00019399,2]
[426138502,1782162642000,-151.0,0.000193,2]
[426138528,1782162642000,-500.0,0.00019398,2]
[426138473,1782162642000,-260.391664,0.00019012,2]
[426138475,1782162642000,-360.783329,0.00019012,2]
[426138489,1782162642000,-3594.64266997,0.00019196,2]
[426138479,1782162642000,-300.0,0.00019178,2]
[426138477,1782162642000,-250.501529,0.00019105,2]
[426138481,1782162642000,-1262.52,0.00019178,2]
[426138483,1782162642000,-1000.0,0.00019178,2]
[426138485,1782162642000,-384.35251901,0.00019178,2]
[426138487,1782162642000,-1250.17,0.00019178,2]
[426138492,1782162642000,-151.0,0.00019198,2]
[426138491,1782162642000,-500.0,0.00019197,2]
[426138494,1782162642000,-500.0,0.00019296,2]
[426138496,1782162642000,-560.83793117,0.00019296,2]
[426138498,1782162642000,-500.0,0.00019297,2]
[426138595,1782162642000,-500.0,0.00019571,2]
[426138503,1782162642000,-166.88206896,0.00019346,2]
[426138510,1782162642000,-162.380719,0.00019346,2]
[426138512,1782162642000,-2168.8621814,0.00019375,2]
[426138514,1782162642000,-1747.5230619,0.00019375,2]
[426138516,1782162642000,-169.18507167,0.00019393,2]
[426138518,1782162642000,-411.4677565,0.00019393,2]
[426138520,1782162642000,-520.15639597,0.00019398,2]
[426138522,1782162642000,-504.06835888,0.00019398,2]
[426138532,1782162642000,-512.75151868,0.00019398,2]
[426138524,1782162642000,-520.03263182,0.00019398,2]
[426138526,1782162642000,-510.36102743,0.00019398,2]
[426138530,1782162642000,-210.22625144,0.00019398,2]
[426138534,1782162642000,-500.0,0.00019398,2]
[426138597,1782162642000,-300.0,0.00019589,3]
[426138500,1782162642000,-500.0,0.00019297,2]
[426138599,1782162642000,-252.73837912,0.000196,2]
[426138673,1782162642000,-16931.796855,0.00020086,2]
[426138665,1782162642000,-170.65,0.00020079,2]
[426138671,1782162642000,-11341.197903,0.00020086,2]
[426138667,1782162642000,-160.0,0.00020086,2]
[426138669,1782162642000,-5750.598951,0.00020086,2]
[426138675,1782162642000,-1000.0,0.00020245,2]
[426138685,1782162642000,-1000.0,0.00020245,2]
[426138677,1782162642000,-1000.0,0.00020245,2]
[426138679,1782162642000,-1000.0,0.00020245,2]
[426138687,1782162642000,-1000.0,0.00020245,2]
[426138683,1782162642000,-1000.0,0.00020245,2]
[426138681,1782162642000,-1000.0,0.00020245,2]
[426138717,1782162642000,-324.81484229,0.00020255,2]
[426138699,1782162642000,-1000.0,0.00020245,2]
[426138691,1782162642000,-1000.0,0.00020245,2]
[426138689,1782162642000,-1000.0,0.00020245,2]
[426138693,1782162642000,-1000.0,0.00020245,2]
[426138697,1782162642000,-1000.0,0.00020245,2]
[426138695,1782162642000,-1000.0,0.00020245,2]
[426138701,1782162642000,-492.09202291,0.0002025,2]
[426138703,1782162642000,-393.7108025,0.0002025,2]
[426138711,1782162642000,-312.40832266,0.00020255,2]
[426138713,1782162642000,-653.76556917,0.00020255,2]
[426138709,1782162642000,-386.8411255,0.00020255,2]
[426138705,1782162642000,-507.55521501,0.00020255,2]
[426138715,1782162642000,-327.79874366,0.00020255,2]
[426138607,1782162642000,-500.0,0.00019673,2]
[426138663,1782162642000,-1250.17,0.0002,2]
[426138655,1782162642000,-561033.47578715,0.0002,2]
[426138707,1782162642000,-306.92879066,0.00020255,2]